Cogmind - Beta 12 @@@ ROGUE MODE // 2023.07.25 @ 21:55:54 Player: Shadow Pussy wanter Result: Destroyed by G-67 Veteran with Plasma Rifle Performance ------------- Evolutions (6) 3000 Regions Visited (20) 4000 Robots Destroyed (237) 1185 Value Destroyed (9151) 9151 Prototype IDs (28) 560 Alien Tech Used (0) 0 Bonus (6450) 6450 TOTAL SCORE: 24346 Bonus ------- High Alert Combat Kills 1780 Follower Combat Kills 2763 Network Hubs Disabled 200 Met Data Miner 300 Met Imprinter 300 Was Imprinted 300 Met Zhirov 300 Built Enhanced Grunts 300 A7 Reached Mainframe 300 Met R17 at Cetus 500 Read Decrypted Archives 300 Friendly Fire -893 Cogmind --------- Core Integrity 0/1150 Matter 259/300 Energy 98/100 System Corruption 9% Temperature Cool (12) Movement Core (50) Location -4/Upper Caves Parts ------- > --- POWER (2) -------- (None) > --- PROPULSION (4) --- (None) > --- UTILITY (9) ------ (None) > --- WEAPON (4) ------- (None) > --- INVENTORY (5) ---- Improved Heavy Armor Plating EM Disruption Field Point Defense Array Advanced KE Penetrator Peak State ------------ > --- POWER ------------ Neutrino Core Quantum Reactor > --- PROPULSION ------- Centrium Heavy Treads Centrium Heavy Treads > --- UTILITY ---------- Huge Storage Unit Advanced Sensor Array Improved Signal Interpreter Advanced Terrain Scanner Advanced Terrain Scan Processor Improved Transmission Jammer Improved Utility Shielding Hardened Medium Armor Plating Centrium Medium Armor Plating > --- WEAPON ----------- KE Penetrator KE Penetrator Advanced KE Penetrator Advanced KE Penetrator > --- INVENTORY -------- Neutrino Core Antimatter Reactor Improved Medium Treads Improved Cooling System Matter Compressor Tactical Coordination Suite Improved Medium Armor Plating Layered Medium Armor Plating Centrium Medium Armor Plating Improved Hardlight Generator Force Field Point Defense Array Long-range Tractor Beam Long-range Tractor Beam Hacking Drone Bay HERF Cannon HERF Cannon HERF Cannon Heavy Phase Cannon KE Penetrator KE Penetrator [Rating: 130] Favorites ----------- Power Antimatter Reactor Engine Ion Engine Power Core Enhanced Nuclear Core Reactor Antimatter Reactor Propulsion Light Treads Treads Light Treads Leg Aluminum Leg Utility Huge Storage Unit Device Improved Heat Sink Storage Huge Storage Unit Processor Advanced Terrain Scan Processor Hackware Hacking Suite Protection Hardened Medium Armor Plating Weapon Plasma Cannon Energy Gun Phase Gun Energy Cannon Plasma Cannon Ballistic Gun KE Penetrator Ballistic Cannon Improved Light Cannon Launcher Proton Missile Launcher Impact Weapon Heavy Flail Build | -11 -10 -9 -8 -7 -7 -7 -7 -6 -6 -6 -6 -6 -5 -5 -5 -5 -5 -5 -4 -4 ------- Run | Jun Mat Mat Mat Fac Low Low Dat Pro Fac Low Low Zio Pro Fac Ext Cet Arc Hub Fac Upp Slots Evolved 12 | . . 2 2 2 . . . . 2 . . . . 2 . . . . 2 . Power 1 | . . . . . . . . . . . . . . . . . . . 1 . Propulsion 2 | . . 2 . . . . . . . . . . . . . . . . . . Utility 7 | . . . 2 2 . . . . . . . . . 2 . . . . 1 . Weapon 2 | . . . . . . . . . 2 . . . . . . . . . . . Parts Attached 333 | 6 10 12 33 14 4 1 2 4 21 9 1 9 8 12 36 9 2 46 94 . Power 13 | 1 1 1 1 1 . . . . 1 . . . . 1 . . . 2 4 . Engine 4 | 1 1 1 1 . . . . . . . . . . . . . . . . . Core 4 | . . . . 1 . . . . . . . . . . . . . . 3 . Reactor 5 | . . . . . . . . . 1 . . . . 1 . . . 2 1 . Propulsion 66 | 2 4 2 11 3 2 . . 1 7 1 1 3 2 . 8 2 . 3 14 . Treads 48 | . . . 7 3 2 . . 1 5 . 1 2 2 . 8 2 . 3 12 . Leg 18 | 2 4 2 4 . . . . . 2 1 . 1 . . . . . . 2 . Wheel . | . . . . . . . . . . . . . . . . . . . . . Hover . | . . . . . . . . . . . . . . . . . . . . . Flight . | . . . . . . . . . . . . . . . . . . . . . Utility 171 | 1 1 4 12 7 1 1 . 3 5 5 . 2 4 6 17 4 2 32 64 . Device 112 | . 1 1 6 5 1 1 . 1 2 5 . 1 2 2 6 2 2 28 46 . Storage 6 | 1 . 3 . . . . . . . . . . . . 1 . . . 1 . Processor 8 | . . . 1 . . . . . 2 . . . . 2 1 . . . 2 . Hackware 3 | . . . . 1 . . . . . . . . . 2 . . . . . . Protection 42 | . . . 5 1 . . . 2 1 . . 1 2 . 9 2 . 4 15 . Artifact . | . . . . . . . . . . . . . . . . . . . . . Weapon 83 | 2 4 5 9 3 1 . 2 . 8 3 . 4 2 5 11 3 . 9 12 . Energy Gun 19 | 2 4 2 2 . . . . . 1 . . . 1 2 1 1 . . 3 . Energy Cannon 30 | . . 2 4 2 1 . 2 . 5 2 . 3 . 2 2 . . 3 2 . Ballistic Gun 26 | . . 1 1 . . . . . . . . . 1 1 7 2 . 6 7 . Ballistic Cannon 3 | . . . 1 1 . . . . 1 . . . . . . . . . . . Launcher 3 | . . . 1 . . . . . . 1 . 1 . . . . . . . . Special Weapon . | . . . . . . . . . . . . . . . . . . . . . Impact Weapon 2 | . . . . . . . . . 1 . . . . . 1 . . . . . Slashing Weapon . | . . . . . . . . . . . . . . . . . . . . . Piercing Weapon . | . . . . . . . . . . . . . . . . . . . . . Special Melee Weapon . | . . . . . . . . . . . . . . . . . . . . . Unidentified Prototypes 13 | . . 1 2 1 . . . . 1 . . . . . 1 4 1 . 2 . Corrupted Parts 12 | . . . . . . . . . 1 1 1 . 2 . . 3 . 4 . . System Corruption 86 | . . . . . . . . . 2 4 10 . 17 . . 27 . 26 . . Parts Lost 68 | . 4 1 9 5 3 . . 2 1 1 2 . 1 1 4 1 . 11 22 . Power 5 | . . . 1 . . . . . . . . . . . . . . 1 3 . Propulsion 23 | . 1 . 2 3 2 . . 2 . 1 1 . . . 2 . . 2 7 . Utility 21 | . . . 4 2 1 . . . 1 . . . 1 . . 1 . 4 7 . Weapon 19 | . 3 1 2 . . . . . . . 1 . . 1 2 . . 4 5 . Highest Loss Streak 10 | . 2 1 4 4 3 . . 1 1 1 2 . 1 1 2 1 . 9 10 . To Critical Strikes 3 | . . . . . . . . . . . . . . . 1 . . 1 1 . Average Slot Usage (%) 95 | . 90 96 95 99 99 100 85 92 96 99 95 96 98 95 99 90 88 86 93 . Engine 1 | . 14 11 8 1 . . . . . . . . . . . . . . . . Core 1 | . . . . 5 7 7 7 7 3 . . . . . . . . . 5 . Reactor 3 | . . . . . . . . . 2 6 6 6 6 4 5 5 5 4 4 . Treads 19 | . . . 19 29 29 30 30 23 22 24 17 22 26 23 22 14 11 10 18 . Leg 4 | . 27 40 16 . . . . . . 1 6 3 . . . . . . . . Device 15 | . 10 11 15 24 29 30 30 25 14 6 6 6 14 19 15 15 23 21 16 . Storage 6 | . 14 11 9 7 7 7 7 7 6 6 6 6 6 5 5 5 5 5 4 . Processor 8 | . . . . 2 . . . . 7 13 13 13 7 6 11 11 11 11 13 . Hackware 2 | . . . . 3 7 7 7 7 6 6 6 6 . 1 . . . . . . Protection 6 | . . . 7 6 . . . 4 3 6 6 6 9 9 12 10 5 5 8 . Energy Gun 3 | . 23 12 3 . . . . . 1 . . . 4 6 2 1 . . 3 . Energy Cannon 9 | . . 7 11 13 15 15 1 15 22 19 17 16 14 4 6 . . 3 3 . Ballistic Gun 5 | . . 1 . . . . . . . . . . . 4 12 21 23 18 12 . Launcher 1 | . . . . . . . . . . 5 6 5 6 2 . . . . . . Naked Turns 180 | . . . . . . . . . . . . . . . . . . . 99 81 Heaviest Build 169 | 14 15 93 102 112 106 107 107 126 148 146 146 146 139 140 147 141 134 147 169 . Greatest Support 160 | 20 20 43 83 96 112 112 112 107 101 101 73 98 98 98 106 160 160 160 160 3 Greatest Overweight (x) 4 | 1 1 2 2 2 . . . 1 4 1 2 2 1 1 2 1 . 1 4 . Average Overweight (x) . | . . . 1 1 . . . . 1 1 1 1 1 1 1 . . . . . Largest Inventory Capacity 25 | 8 8 25 25 25 25 25 25 25 25 25 25 25 25 25 25 25 25 25 25 5 Average Capacity 23 | 7 8 16 25 25 25 25 25 25 25 25 25 25 25 25 25 25 25 25 24 5 Most Carried 25 | 7 8 20 25 25 25 25 25 25 25 25 25 25 25 25 25 25 25 25 25 5 Average Carried 22 | 4 7 12 23 22 22 24 25 24 24 25 25 24 24 24 24 24 25 23 23 5 Final Capacity 25 | 8 8 25 25 25 25 25 25 25 25 25 25 25 25 25 25 25 25 25 5 5 Final Carried 25 | 7 8 20 25 25 25 25 25 25 25 25 25 24 25 24 25 25 25 20 5 5 Class Distribution -------------------- 22% | Mutant 18% | Scavenger-Mutant 17% | Scavenger-Tank 12% | Scavenger-Gunner 10% | Scavenger-Skirmisher 6% | Commander-Tank 5% | Infiltrator-Mutant Dominant Class ---------------- Mutant | -10/Materials Mutant | -9/Materials Mutant | -8/Materials Mutant | -7/Factory Infiltrator-Mutant | -7/Lower Caves Infiltrator-Mutant | -7/Lower Caves Infiltrator-Mutant | -7/Data Miner Mutant | -6/Proximity Caves Pyromaniac-Skirmisher | -6/Factory Gunner | -6/Lower Caves Scavenger-Mutant | -6/Lower Caves Scavenger-Gunner | -6/Zion Scavenger-Mutant | -5/Proximity Caves Scavenger-Skirmisher | -5/Factory Scavenger-Tank | -5/Extension Scavenger-Tank | -5/Cetus Scavenger-Tank | -5/Archives Scavenger-Tank | -5/Hub_04(d) Scavenger-Skirmisher | -4/Factory Mutant | -4/Upper Caves Resources | -11 -10 -9 -8 -7 -7 -7 -7 -6 -6 -6 -6 -6 -5 -5 -5 -5 -5 -5 -4 -4 ----------- Run | Jun Mat Mat Mat Fac Low Low Dat Pro Fac Low Low Zio Pro Fac Ext Cet Arc Hub Fac Upp Matter Collected 5943 | 252 66 142 477 174 30 25 . 72 546 134 45 80 208 28 758 331 . 886 1657 32 Remotely 1249 | . . . . . . . . . . . . . . . . . . 509 740 . Salvage Created 10971 | 63 762 405 1631 418 156 89 . 167 762 231 75 . 636 28 840 332 . 1181 3195 . Parts 537 | 2 43 22 84 20 9 1 . 9 24 9 2 . 26 2 32 15 . 72 165 . Haulers Intercepted 4 | . 1 1 2 . . . . . . . . . . . . . . . . . Recyclers Shooed 5 | . . 1 1 . . . . . . . . . . . 1 . . 1 1 . Parts Field Recycled . | . . . . . . . . . . . . . . . . . . . . . Retrieved Matter . | . . . . . . . . . . . . . . . . . . . . . Parts Self-Destructed 64 | . . . . . 12 6 . 15 . 2 3 3 23 . . . . . . . Prevented 17 | . . . . . . . . . . 5 2 . 10 . . . . . . . Kills | -11 -10 -9 -8 -7 -7 -7 -7 -6 -6 -6 -6 -6 -5 -5 -5 -5 -5 -5 -4 -4 ------- Run | Jun Mat Mat Mat Fac Low Low Dat Pro Fac Low Low Zio Pro Fac Ext Cet Arc Hub Fac Upp Combat Hostiles Destroyed 178 | . 13 10 33 10 4 2 . 5 10 5 1 . 15 . 11 4 . 13 42 . Guns 88 | . 13 7 6 . . . . . . . . . . . 9 4 . 13 36 . Cannons 55 | . . 2 17 9 4 2 . 5 7 3 . . . . 1 . . . 5 . AOE 24 | . . . 8 . . . . . . 1 . . 14 . . . . . 1 . Classes Destroyed 19 | 1 4 3 4 1 . . . . . . . . . . . 1 . 3 2 . Worker 15 | . 3 . 4 1 . . . . . . . . . . 1 . . 4 2 . Builder 6 | . . . 2 . . . . . . . . . . . 1 . . 1 2 . Tunneler 6 | 3 1 . 1 . . . . . . . . . . . . . . . 1 . Hauler 4 | . 1 1 2 . . . . . . . . . . . . . . . . . Recycler 12 | . . 1 5 . . . . . 1 . . . . . . . . 2 3 . Carrier 1 | . . . . . . . . . . . . . . . . 1 . . . . Mechanic 1 | . . . . . . . . . . . . . . . . . . . 1 . Operator 2 | . . . . . . . . . . . . . . . . . . 1 1 . Watcher 9 | . 1 . 1 . . . . . 1 . . . . 1 . 1 . 2 2 . Swarmer 52 | . . 6 12 4 3 . . 4 . . . . 10 . . 3 . 3 7 . Grunt 63 | . 13 2 10 2 . 2 . . 6 2 . . 3 . 6 . . 3 14 . Brawler 8 | . . . 2 . . . . . . . . . 2 . 1 . . 1 2 . Duelist 5 | . . . 2 . . . . . . . . . . . . . . . 3 . Protector 1 | . . . . . . . . . . . . . . . . . . 1 . . Sentry 19 | . . 2 6 . 1 . . . 1 . 1 . . . 4 . . 1 3 . Hunter 14 | . . . 1 1 . . . 1 2 2 . . . . . . . 3 4 . Programmer 13 | . . . . 3 . . . . 1 1 . . . . . . . . 8 . Heavy 1 | . . . . . . . . . . . . . . . . . . . 1 . Behemoth 1 | . . . . . . . . . . . . . . . . . . 1 . . Cetus Guard 1 | . . . . . . . . . . . . . . . . 1 . . . . Decomposer 1 | . . . . . 1 . . . . . . . . . . . . . . . Thug 1 | . . . . . . . . . . . . . . . . 1 . . . . Butcher 1 | . . . . . . . . . . . . . . . 1 . . . . . Guerrilla 1 | . . . . . . . . . . . . . . . 1 . . . . . Best Kill Streak 8 | 1 7 5 7 3 2 2 . 2 2 2 1 . 5 1 5 4 . 5 8 . Combat Bots Only 5 | . 5 4 5 3 2 2 . 2 2 2 1 . 5 . 5 3 . 5 5 . Max Kills in Single Turn 6 | 1 1 1 6 1 1 1 . 1 1 1 1 . 4 1 2 2 . 4 3 . Gunslinging 2 | . . . . . . . . . . . . . . . . 1 . 1 2 . Exploded 4 | . . . 4 . . . . . . 1 . . 4 . . . . . 1 . Melee . | . . . . . . . . . . . . . . . . . . . . . Uniques/NPCs Destroyed . | . . . . . . . . . . . . . . . . . . . . . Combat | -11 -10 -9 -8 -7 -7 -7 -7 -6 -6 -6 -6 -6 -5 -5 -5 -5 -5 -5 -4 -4 -------- Run | Jun Mat Mat Mat Fac Low Low Dat Pro Fac Low Low Zio Pro Fac Ext Cet Arc Hub Fac Upp Damage Taken 18042 | . 593 352 1909 1008 257 123 . 387 909 167 223 . 566 403 977 269 1464 3011 5347 77 Core 2565 | . 101 79 206 102 28 15 . 49 82 11 26 . 27 52 138 15 169 308 1080 77 Absorbed by Shields 561 | . . . . . . . . . . . . . . . 67 70 . . 424 . Reduced by Siege Mode 126 | . . . . . . . . . . . . . . . . 35 . 91 . . Redirected to Shielding 143 | . . . . 18 . . . . . . . . . . 15 . . . 110 . Regen/Repaired (Parts) 298 | . . . . . . . . . . . . . . 96 . . . . 202 . Core Remaining (%) 69 | 100 59 80 62 . . . . 72 . . . . 82 . . . . 31 . . Volleys Fired 513 | 9 77 33 88 29 8 6 . 15 31 7 5 . 22 2 25 13 . 42 101 . Largest 4 | 2 2 2 2 2 2 2 . 2 4 3 2 . 3 2 4 4 . 4 4 . Hottest 325 | 100 100 118 143 160 160 160 . 160 325 240 119 . 240 90 274 240 . 189 248 . Shots Fired 1223 | 18 115 65 172 58 17 12 . 31 92 20 7 . 29 4 94 48 . 119 322 . Gun 735 | 18 115 51 53 . . . . . 14 . . . . 3 70 48 . 99 264 . Cannon 459 | . . 14 118 58 17 12 . 31 78 16 2 . 11 . 24 . . 20 58 . Launcher 29 | . . . 1 . . . . . . 4 5 . 18 1 . . . . . . Special . | . . . . . . . . . . . . . . . . . . . . . Kinetic 460 | . . 6 35 . . . . . 2 . . . . 2 65 47 . 99 204 . Thermal 711 | 18 115 59 136 58 17 12 . 31 68 16 2 . 11 . 29 1 . 20 118 . Explosive . | . . . . . . . . . . . . . . . . . . . . . Electromagnetic 52 | . . . 1 . . . . . 22 4 5 . 18 2 . . . . . . Robot Hit Streak 27 | 4 10 10 12 9 4 7 . 9 16 10 6 . 11 2 17 27 . 13 26 . Robot Miss Streak 11 | 1 3 11 4 6 3 1 . 3 4 1 1 . . 1 2 3 . 3 6 . Penetration Max 1 | . . . . . . . . . . . . . . . 1 1 . 1 1 . Secondary Targets 16 | . . . . . . . . . . . . . . . 4 2 . 1 9 . Max Gunslinging Chain 2 | . . . . . . . . . . . . . . . 1 1 . 1 2 . Shots Hit Robots 790 | 12 75 34 121 33 10 10 . 18 56 10 6 . 10 2 73 35 . 74 211 . Core Hits 422 | 3 35 17 63 13 6 4 . 6 16 5 2 . 29 1 34 18 . 51 119 . Critical Kills 18 | . . 1 . 1 . . . . 1 . . . . . 1 . . 3 11 . Critical Parts Destroyed 7 | . . . . . . . . . 1 . . . . . . . . 1 5 . Critical Strikes 45 | 3 5 1 3 1 . . . . 3 . . . . . 4 1 . 4 20 . Burn 15 | 3 5 . 1 . . . . . . . . . . . 2 . . . 4 . Meltdown 4 | . . 1 . 1 . . . . 1 . . . . . . . . . 1 . Destroy 22 | . . . . . . . . . . . . . . . 2 1 . 4 15 . Blast 2 | . . . 2 . . . . . . . . . . . . . . . . . Corrupt 1 | . . . . . . . . . 1 . . . . . . . . . . . Smash 1 | . . . . . . . . . 1 . . . . . . . . . . . Melee Attacks 9 | . . . . . . . . . 6 . . . . . 3 . . . . . Impact 9 | . . . . . . . . . 6 . . . . . 3 . . . . . Slashing . | . . . . . . . . . . . . . . . . . . . . . Piercing . | . . . . . . . . . . . . . . . . . . . . . Sneak Attacks . | . . . . . . . . . . . . . . . . . . . . . Combat Hostiles . | . . . . . . . . . . . . . . . . . . . . . Follow-up Attacks . | . . . . . . . . . . . . . . . . . . . . . Damage Inflicted 23122 | 159 1017 525 3405 930 259 259 . 405 1641 319 146 . 1133 74 2112 1113 . 2576 7049 . Guns 12465 | 151 1000 336 743 . . . . . 94 . . . . 32 1430 1113 . 2000 5566 . Cannons 7564 | . . 171 1789 918 259 259 . 405 1388 253 53 . 152 . 613 . . 283 1021 . Explosions 2615 | . . . 843 . . . . . . 66 93 . 981 42 . . . 221 369 . Melee 154 | . . . . . . . . . 154 . . . . . . . . . . . Ramming 324 | 8 17 18 30 12 . . . . 5 . . . . . 69 . . 72 93 . Kinetic 9176 | . . 75 505 . . . . . 21 . . . . . 1356 1113 . 2000 4106 . Thermal 10853 | 151 1000 432 2097 918 259 259 . 405 1172 253 53 . 403 . 687 . . 283 2481 . Explosive 1033 | . . . 664 . . . . . . . . . . . . . . . 369 . Electromagnetic 1582 | . . . 109 . . . . . 289 66 93 . 730 74 . . . 221 . . Impact 154 | . . . . . . . . . 154 . . . . . . . . . . . Slashing . | . . . . . . . . . . . . . . . . . . . . . Piercing . | . . . . . . . . . . . . . . . . . . . . . Highest Corruption 77 | . . 5 2 1 1 1 1 1 4 10 20 20 17 . 3 30 30 77 9 9 Average Corruption 9 | . . 5 1 1 1 1 1 1 3 7 10 20 10 . 2 14 30 35 1 9 Corruption Purged . | . . . . . . . . . . . . . . . . . . . . . Corruption Blocked 49 | . . . . . . . . . . . . . . . . . . 34 15 . Effects 243 | . . 18 2 3 7 2 . 6 11 20 15 2 36 . 8 25 6 70 11 1 Message Errors 60 | . . 4 1 2 2 1 . 1 1 4 5 . 11 . 2 6 1 16 3 . Matter Fused 45 | . . 2 . . . 1 . 3 3 6 1 . 5 . 2 6 1 14 . 1 Heat Flow Errors 30 | . . 1 . . 2 . . . 2 2 1 1 8 . . 2 . 9 2 . Energy Discharges 36 | . . 5 1 . 1 . . . 2 2 3 1 7 . 2 3 1 4 4 . Parts Rejected 2 | . . . . . . . . . . . . . . . . . . 2 . . Data Loss (minor) 28 | . . 2 . . . . . 1 1 3 2 . 2 . 1 3 1 11 1 . Data Loss (major) 11 | . . 2 . 1 . . . . . . 2 . 1 . . 1 . 4 . . Misfires 11 | . . . . . 1 . . 1 2 3 1 . 1 . 1 1 . . . . Alerts 4 | . . 1 . . 1 . . . . . . . . . . 1 1 . . . Misdirections 2 | . . . . . . . . . . . . . . . . . 1 1 . . Weapon Failures 14 | . . 1 . . . . . . . . . . 1 . . 2 . 9 1 . Overload Shots 1 | . . . . . . . . . . . . . . . . 1 . . . . Overflow Damage 294 | . . 2 46 30 . . . 2 118 9 . . . . 6 . . 48 33 . Projectiles 168 | . . 2 23 30 . . . 2 67 9 . . . . . . . 19 16 . Explosions 69 | . . . 23 . . . . . . . . . . . . . . 29 17 . Melee 57 | . . . . . . . . . 51 . . . . . 6 . . . . . Knockbacks 11 | . . . 6 . . . . . 1 . . . . . 2 . . . 2 . Impact 4 | . . . . . . . . . 1 . . . . . 1 . . . 2 . Kinetic 6 | . . . 6 . . . . . . . . . . . . . . . . . Secondary 1 | . . . . . . . . . . . . . . . 1 . . . . . Self-Inflicted Damage 381 | . . . 190 . . . . . . 22 24 . . . . . . 82 63 . Shots 7 | . . . 3 . . . . . . 1 1 . . . . . . 1 1 . Rammed 26 | . . . 1 . . . . . 1 . . . . . 5 . . 7 12 . Targets Rammed 42 | 2 6 4 3 1 . . . . 1 . . . . . 6 . . 7 12 . Kicked 12 | 2 6 4 . . . . . . . . . . . . . . . . . . Crushed 4 | . . . 2 1 . . . . . . . . . . 1 . . . . . Highest Temperature 498 | 117 418 250 150 344 113 18 . 8 429 251 156 219 217 . 320 230 . 268 498 346 Average Temperature 116 | 42 113 42 50 137 40 11 . 5 140 105 88 111 84 . 128 100 . 70 156 174 Received Heat Transfer 2473 | . 327 99 477 108 54 90 . 30 201 9 72 . 81 . 224 6 36 147 491 21 Effects 27 | . 3 . . 2 . . . . 2 . . . . . 3 . . 3 14 . Shutdowns 11 | . 1 . . . . . . . 1 . . . . . . . . . 9 . Energy Bleed 6 | . 2 . . . . . . . . . . . . . . . . . 4 . Interference 5 | . . . . . . . . . . . . . . . 2 . . 3 . . Matter Decay 4 | . . . . 1 . . . . 1 . . . . . 1 . . . 1 . Damage (minor) 1 | . . . . 1 . . . . . . . . . . . . . . . . Siege Activations 11 | . . . . . . . . . . . . . . . . 2 . 6 3 . Total Turns 153 | . . . . . . . . . . . . . . . . 25 . 106 22 . Longest Duration 37 | . . . . . . . . . . . . . . . . 24 . 37 13 . Robots Corrupted 3 | . . . . . . . . . 1 1 1 . . . . . . . . . Combat Hostiles 3 | . . . . . . . . . 1 1 1 . . . . . . . . . Parts Fried 11 | . . . . . . . . . 2 3 . . 4 2 . . . . . . Impact Corruptions 4 | . . . . . . . . . 3 . . . . . 1 . . . . . Robots Melted 8 | . . 1 2 1 . . . . 1 . . . 1 . 1 . . . 1 . Combat Hostiles 7 | . . 1 2 1 . . . . 1 . . . 1 . 1 . . . . . Parts Melted 58 | 1 9 4 7 10 1 2 . 3 8 1 . . 1 . 1 . . . 10 . Heat Transferred 20285 | 666 3147 977 3800 1650 500 500 . 800 2135 450 100 . 600 . 1409 . . 258 3293 . Parts Sabotaged 4 | . . . . . . . . . . . . . . . . . . . 4 . Parts Stolen . | . . . . . . . . . . . . . . . . . . . . . Parts Stripped . | . . . . . . . . . . . . . . . . . . . . . Power Chain Reactions 7 | . . . 2 . . . . . . . . . 5 . . . . . . . Missiles Intercepted . | . . . . . . . . . . . . . . . . . . . . . Alert | -11 -10 -9 -8 -7 -7 -7 -7 -6 -6 -6 -6 -6 -5 -5 -5 -5 -5 -5 -4 -4 ------- Run | Jun Mat Mat Mat Fac Low Low Dat Pro Fac Low Low Zio Pro Fac Ext Cet Arc Hub Fac Upp Peak Influence 1636 | 15 224 297 657 361 . . . . 264 . . . . 75 340 646 579 1446 1636 . Initial 669 | . 9 91 74 230 . . . . 54 . . . . 53 . 164 251 202 669 . Average 416 | 6 130 139 372 238 . . . . 129 . . . . 54 134 417 400 542 1065 . Maximum Alert Level 5 | . 1 1 2 1 . . . . 1 . . . . . 1 2 2 4 5 . Low Security (%) 39 | 100 74 76 23 32 . . . . 92 . . . . 100 61 8 . . . . Level 1 24 | . 25 23 29 67 . . . . 7 . . . . . 38 35 45 32 . . Level 2 12 | . . . 47 . . . . . . . . . . . . 56 55 42 2 . Level 3 16 | . . . . . . . . . . . . . . . . . . 18 69 . Level 4 6 | . . . . . . . . . . . . . . . . . . 6 27 . Level 5 . | . . . . . . . . . . . . . . . . . . . . . High Security . | . . . . . . . . . . . . . . . . . . . . . Max Security . | . . . . . . . . . . . . . . . . . . . . . Squads Dispatched 46 | . 3 1 6 3 . . . . 5 . . . 1 1 . . . 10 16 . Investigation 6 | . 2 . . . . . . . 1 . . . . 1 . . . 1 1 . Extermination 10 | . . . . 2 . . . . 2 . . . . . . . . 1 5 . Reinforcement 12 | . 1 1 1 1 . . . . 2 . . . . . . . . 3 3 . Assault 11 | . . . 1 . . . . . . . . . 1 . . . . 2 7 . Garrison 7 | . . . 4 . . . . . . . . . . . . . . 3 . . Intercept . | . . . . . . . . . . . . . . . . . . . . . Searches Triggered . | . . . . . . . . . . . . . . . . . . . . . Data Miner Redirects 11 | . . . . . . . . . . . . . . . . . . . 11 . Construction Impeded 1 | . . . . . . . . . . . . . . . . . . 1 . . Haulers Reinforced 2 | . . . . . . . . . . . . . . . . . . 1 1 . Active Scanning Responses . | . . . . . . . . . . . . . . . . . . . . . Cargo Convoy Interrupts 1 | . . . . . . . . . . . . . . . . . . . 1 . Stealth | -11 -10 -9 -8 -7 -7 -7 -7 -6 -6 -6 -6 -6 -5 -5 -5 -5 -5 -5 -4 -4 --------- Run | Jun Mat Mat Mat Fac Low Low Dat Pro Fac Low Low Zio Pro Fac Ext Cet Arc Hub Fac Upp Distress Signals 13 | . 1 . . . . . . . . . . . . 1 2 2 1 2 4 . Communications Jammed 110 | . . . . . . . . . . . . . . . . . . 67 43 . Distress Signals 103 | . . . . . . . . . . . . . . . . . . 64 39 . Times Spotted 356 | . 22 17 41 13 4 2 . 8 18 5 2 . 22 5 27 25 19 33 87 6 Peak Tracking Total 21 | . 3 4 6 4 1 2 . 3 4 2 1 . 5 5 7 9 13 7 21 5 Tactical Retreats 22 | . 3 3 1 2 . . . . . 1 1 . 1 . 1 . . 1 7 1 Traps | -11 -10 -9 -8 -7 -7 -7 -7 -6 -6 -6 -6 -6 -5 -5 -5 -5 -5 -5 -4 -4 ------- Run | Jun Mat Mat Mat Fac Low Low Dat Pro Fac Low Low Zio Pro Fac Ext Cet Arc Hub Fac Upp Traps Triggered 11 | . 2 . . . . . . . . . . . . 1 4 . . 1 2 1 Indirectly . | . . . . . . . . . . . . . . . . . . . . . Trap Hack Attempts . | . . . . . . . . . . . . . . . . . . . . . Triggered . | . . . . . . . . . . . . . . . . . . . . . Disarmed . | . . . . . . . . . . . . . . . . . . . . . Reprogrammed . | . . . . . . . . . . . . . . . . . . . . . Reused . | . . . . . . . . . . . . . . . . . . . . . Traps Extracted . | . . . . . . . . . . . . . . . . . . . . . Installed . | . . . . . . . . . . . . . . . . . . . . . Triggered 8 | . . . . . . . . . . 4 . . . . . . . . 1 3 Machines | -11 -10 -9 -8 -7 -7 -7 -7 -6 -6 -6 -6 -6 -5 -5 -5 -5 -5 -5 -4 -4 ---------- Run | Jun Mat Mat Mat Fac Low Low Dat Pro Fac Low Low Zio Pro Fac Ext Cet Arc Hub Fac Upp Machines Disabled 39 | . . . 5 . . . . . 1 . . . 1 . 3 2 . 17 10 . Max in Single Turn 12 | . . . 2 . . . . . . . . . . . 1 1 . 12 3 . Garrison Access 1 | . . . . . . . . . . . . . . . . . . 1 . . Network Hub 1 | . . . . . . . . . . . . . . . . . . 1 . . Machines Repaired . | . . . . . . . . . . . . . . . . . . . . . Machines Sabotaged . | . . . . . . . . . . . . . . . . . . . . . Overloaded Fab Kills . | . . . . . . . . . . . . . . . . . . . . . Hacking | -11 -10 -9 -8 -7 -7 -7 -7 -6 -6 -6 -6 -6 -5 -5 -5 -5 -5 -5 -4 -4 --------- Run | Jun Mat Mat Mat Fac Low Low Dat Pro Fac Low Low Zio Pro Fac Ext Cet Arc Hub Fac Upp Machines Accessed 28 | . 4 3 3 3 2 . 3 . 4 . . . . 1 . 2 1 . 2 . Terminals 18 | . 4 3 3 3 . . . . 3 . . . . . . 2 . . . . Fabricators 1 | . . . . . . . . . . . . . . . . . . . 1 . Repair Stations 2 | . . . . . . . . . . . . . . 1 . . . . 1 . Recycling Units . | . . . . . . . . . . . . . . . . . . . . . Scanalyzers . | . . . . . . . . . . . . . . . . . . . . . Garrison Access 1 | . . . . . . . . . 1 . . . . . . . . . . . Total Hacks 116 | . 13 14 6 6 4 . 22 . 11 . . . . 3 . 4 25 . 8 . Successful 81 | . 7 8 1 1 4 . 22 . 4 . . . . 2 . 1 25 . 6 . Failed 34 | . 5 6 5 5 . . . . 7 . . . . 1 . 3 . . 2 . Catastrophic 7 | . . . 1 2 . . . . 2 . . . . . . 2 . . . . Database Lockouts 1 | . 1 . . . . . . . . . . . . . . . . . . . Manual 58 | . 11 14 6 4 . . . . 6 . . . . 5 5 1 . 6 . . Terminals 51 | . 13 14 6 6 . . . . 8 . . . . . . 4 . . . . Fabricators 3 | . . . . . . . . . . . . . . . . . . . 3 . Repair Stations 8 | . . . . . . . . . . . . . . 3 . . . . 5 . Recycling Units . | . . . . . . . . . . . . . . . . . . . . . Scanalyzers . | . . . . . . . . . . . . . . . . . . . . . Garrison Access 3 | . . . . . . . . . 3 . . . . . . . . . . . Terminal Hacks 65 | . 4 5 1 1 4 . 22 . 2 . . . . . . 1 25 . . . Record 35 | . . . . . 3 . 6 . . . . . . . . 1 25 . . . Part Schematic 11 | . 1 . . . . . 10 . . . . . . . . . . . . . Robot Schematic 3 | . . . . . . . 3 . . . . . . . . . . . . . Robot Analysis 2 | . 2 . . . . . . . . . . . . . . . . . . . Prototype ID Bank 6 | . . 3 . . . . 3 . . . . . . . . . . . . . Open Door 1 | . . . . . 1 . . . . . . . . . . . . . . . Branch Access Points 2 | . . . . 1 . . . . 1 . . . . . . . . . . . Terminal Index 1 | . . . . . . . . . 1 . . . . . . . . . . . Unreport Threat 2 | . 1 . 1 . . . . . . . . . . . . . . . . . Registered Components 2 | . . 2 . . . . . . . . . . . . . . . . . . Fabricator Hacks 3 | . . . . . . . . . . . . . . . . . . . 3 . Network Status 1 | . . . . . . . . . . . . . . . . . . . 1 . Load Schematic 1 | . . . . . . . . . . . . . . . . . . . 1 . Build 1 | . . . . . . . . . . . . . . . . . . . 1 . Repair Station Hacks 5 | . . . . . . . . . . . . . . 2 . . . . 3 . Scan Component 3 | . . . . . . . . . . . . . . 1 . . . . 2 . Repair 2 | . . . . . . . . . . . . . . 1 . . . . 1 . Recycling Unit Hacks . | . . . . . . . . . . . . . . . . . . . . . Scanalyzer . | . . . . . . . . . . . . . . . . . . . . . Garrison Access Hacks . | . . . . . . . . . . . . . . . . . . . . . Unauthorized Hacks 8 | . 3 3 . . . . . . 2 . . . . . . . . . . . Terminals 8 | . 3 3 . . . . . . 2 . . . . . . . . . . . Botnet 8 | . 3 3 . . . . . . 2 . . . . . . . . . . . Fabricators . | . . . . . . . . . . . . . . . . . . . . . Repair Stations . | . . . . . . . . . . . . . . . . . . . . . Recycling Units . | . . . . . . . . . . . . . . . . . . . . . Scanalyzers . | . . . . . . . . . . . . . . . . . . . . . Garrison Access . | . . . . . . . . . . . . . . . . . . . . . Data Cores Recovered . | . . . . . . . . . . . . . . . . . . . . . Used . | . . . . . . . . . . . . . . . . . . . . . Hacking Detections 19 | . 2 3 3 3 . . . . 4 . . . . 1 . 1 . . 2 . Full Trace Events 3 | . . . . . . . . . 1 . . . . 1 . . . . 1 . Feedback Events 1 | . . . . . . . . . 1 . . . . . . . . . . . Corruption 1 | . . . . . . . . . 1 . . . . . . . . . . . Feedback Blocked . | . . . . . . . . . . . . . . . . . . . . . Robot Schematics Acquired 3 | . . . . . . . 3 . . . . . . . . . . . . . Robots Built . | . . . . . . . . . . . . . . . . . . . . . Authchips . | . . . . . . . . . . . . . . . . . . . . . Time . | . . . . . . . . . . . . . . . . . . . . . Total Robot Build Rating . | . . . . . . . . . . . . . . . . . . . . . Part Schematics Acquired 11 | . 1 . . . . . 10 . . . . . . . . . . . . . Parts Built 2 | . . . . . . . . . . . . . . . . . . . 2 . Authchips . | . . . . . . . . . . . . . . . . . . . . . Time 58 | . . . . . . . . . . . . . . . . . . . 58 . Total Part Build Rating 14 | . . . . . . . . . . . . . . . . . . . 14 . Parts Repaired 2 | . . . . . . . . . . . . . . 1 . . . . 1 . Time 50 | . . . . . . . . . . . . . . 31 . . . . 19 . Parts Recycled . | . . . . . . . . . . . . . . . . . . . . . Recycled Matter . | . . . . . . . . . . . . . . . . . . . . . Retrieved Matter . | . . . . . . . . . . . . . . . . . . . . . Retrieved Components . | . . . . . . . . . . . . . . . . . . . . . Parts Scanalyzed . | . . . . . . . . . . . . . . . . . . . . . Part Schematics Acquired . | . . . . . . . . . . . . . . . . . . . . . Parts Damaged . | . . . . . . . . . . . . . . . . . . . . . Bothacking | -11 -10 -9 -8 -7 -7 -7 -7 -6 -6 -6 -6 -6 -5 -5 -5 -5 -5 -5 -4 -4 ------------ Run | Jun Mat Mat Mat Fac Low Low Dat Pro Fac Low Low Zio Pro Fac Ext Cet Arc Hub Fac Upp Used RIF Installer . | . . . . . . . . . . . . . . . . . . . . . Robots Hacked . | . . . . . . . . . . . . . . . . . . . . . Non-combat . | . . . . . . . . . . . . . . . . . . . . . Combat . | . . . . . . . . . . . . . . . . . . . . . Robot Hacks Applied . | . . . . . . . . . . . . . . . . . . . . . Relay Couplers Released 1 | . . . . . . . . . . . . . . . . . . 1 . . Machine Destruction 1 | . . . . . . . . . . . . . . . . . . 1 . . Fabnet Peak Effective % . | . . . . . . . . . . . . . . . . . . . . . Robots Rewired 21 | . . . . . . . . . . . . . 1 . 20 . . . . . Allies Hacked . | . . . . . . . . . . . . . . . . . . . . . Hacks Repelled . | . . . . . . . . . . . . . . . . . . . . . Allies | -11 -10 -9 -8 -7 -7 -7 -7 -6 -6 -6 -6 -6 -5 -5 -5 -5 -5 -5 -4 -4 -------- Run | Jun Mat Mat Mat Fac Low Low Dat Pro Fac Low Low Zio Pro Fac Ext Cet Arc Hub Fac Upp Total Allies 54 | . . . . . . . . 1 . . . 4 1 1 34 5 . 8 . . Largest Group 17 | . . . . . . . . 1 1 . . 4 4 1 17 16 6 7 . . Highest-Rated Group 647 | . . . . . . . . 96 96 . . 155 155 27 591 647 616 331 . . Highest-Rated Ally 159 | . . . . . . . . 96 96 . . 40 40 27 159 159 136 51 . . Zionite Dispatches 6 | . . . . . . . . . . . . . . 1 2 . . 3 . . Fire 1 | . . . . . . . . . . . . . . . 1 . . . . . Hacker 2 | . . . . . . . . . . . . . . . . . . 2 . . Infowar Resupply 3 | . . . . . . . . . . . . . . 1 1 . . 1 . . Total Orders 3 | . . . . . . . . . . . . . . 1 1 . . 1 . . DROP 3 | . . . . . . . . . . . . . . 1 1 . . 1 . . Ally Attacks 398 | . . . . . . . . 12 12 . . . 26 . 141 101 41 65 . . Total Damage 11337 | . . . . . . . . 276 692 . . . 1011 . 2722 2488 1543 2605 . . Kills 91 | . . . . . . . . 4 4 . . . 8 . 19 21 9 26 . . Allies Corrupted 3 | . . . . . . . . . . . . . 2 . 1 . . . . . Allies Melted . | . . . . . . . . . . . . . . . . . . . . . Intel | -11 -10 -9 -8 -7 -7 -7 -7 -6 -6 -6 -6 -6 -5 -5 -5 -5 -5 -5 -4 -4 ------- Run | Jun Mat Mat Mat Fac Low Low Dat Pro Fac Low Low Zio Pro Fac Ext Cet Arc Hub Fac Upp Robot Analysis Total 2 | . 2 . . . . . . . . . . . . . . . . . . . Derelict Logs Recovered 3 | . . . . . 1 . . 1 . . . . 1 . . . . . . . Drone Launches . | . . . . . . . . . . . . . . . . . . . . . Drone Recoveries . | . . . . . . . . . . . . . . . . . . . . . Exploration | -11 -10 -9 -8 -7 -7 -7 -7 -6 -6 -6 -6 -6 -5 -5 -5 -5 -5 -5 -4 -4 ------------- Run | Jun Mat Mat Mat Fac Low Low Dat Pro Fac Low Low Zio Pro Fac Ext Cet Arc Hub Fac Upp Turns Passed 19718 | 183 670 933 1374 1107 475 276 142 779 1110 636 448 2295 1032 517 2761 642 100 1194 2963 81 Spaces Moved 7989 | 111 334 474 414 404 278 153 87 307 385 243 165 889 371 185 953 299 57 513 1205 162 Core 390 | 15 . . . . . . . . . . . . . . . . . . 213 162 Treads 6507 | . . . 240 404 278 153 87 307 371 243 165 889 371 185 953 299 57 513 992 . Legs 1092 | 96 334 474 174 . . . . . 14 . . . . . . . . . . . Wheels . | . . . . . . . . . . . . . . . . . . . . . Hover . | . . . . . . . . . . . . . . . . . . . . . Flight . | . . . . . . . . . . . . . . . . . . . . . Fastest Speed 50 | 50 120 120 240 240 160 160 160 160 240 240 240 240 240 245 240 160 160 160 50 50 Average Speed 207 | 118 121 162 248 240 160 160 160 236 241 240 255 255 244 245 241 182 160 162 191 50 Slowest Speed 465 | 190 190 260 260 320 160 160 160 240 400 240 320 320 245 245 323 240 160 240 465 50 Overloaded Moves . | . . . . . . . . . . . . . . . . . . . . . Propulsion Burnouts . | . . . . . . . . . . . . . . . . . . . . . Robots Hopped . | . . . . . . . . . . . . . . . . . . . . . Cave-ins Triggered . | . . . . . . . . . . . . . . . . . . . . . Exploration Rate (%) 47 | 8 62 47 37 10 45 36 70 58 10 51 32 88 52 6 87 85 78 50 46 31 Regions Visited 20 Branch Regions 13 Pre-discovered Areas 3 | . . . . . . . 1 . . . . 2 . . . . . . . . Known Exits Taken 7 | . . . . 1 . . . . 1 . . . . 1 1 1 1 1 . . Unknown Exits Taken 13 | 1 1 1 1 . 1 1 1 1 . 1 1 1 1 . . . . . 1 . Scrap Searched 16 | . . . . . . 3 . 1 . 2 2 3 4 . . . . . . 1 Spaces Dug 28 | . . . 2 . . . . . 1 . . . 4 . . . . 7 14 . Terrain Destroyed 415 | . . . 66 2 1 . . . 6 . . . 12 . 10 1 . 175 142 . Melee 1 | . . . . . . . . . 1 . . . . . . . . . . . Projectile 124 | . . . 9 2 1 . . . 5 . . . . . 10 1 . 21 75 . AOE 288 | . . . 57 . . . . . . . . . 12 . . . . 153 66 . Terrain Rammed . | . . . . . . . . . . . . . . . . . . . . . Walls Destroyed . | . . . . . . . . . . . . . . . . . . . . . Machines Disabled . | . . . . . . . . . . . . . . . . . . . . . Actions | -11 -10 -9 -8 -7 -7 -7 -7 -6 -6 -6 -6 -6 -5 -5 -5 -5 -5 -5 -4 -4 --------- Run | Jun Mat Mat Mat Fac Low Low Dat Pro Fac Low Low Zio Pro Fac Ext Cet Arc Hub Fac Upp Total 10087 | 140 486 577 586 487 292 174 90 328 494 279 186 918 466 242 1358 370 65 763 1624 162 Wait 635 | 6 49 22 19 7 1 10 . 2 27 21 16 1 53 41 24 26 4 151 155 . Move 7971 | 110 333 473 413 403 277 152 86 306 384 242 164 888 370 184 952 298 56 513 1205 162 Hop . | . . . . . . . . . . . . . . . . . . . . . Pick Up 146 | 7 4 19 15 18 2 2 . 1 10 . . 7 2 2 14 7 . 3 33 . Fast Attach 89 | 6 5 5 7 5 . . 2 . 8 1 1 5 2 2 11 6 . 3 20 . Attach 70 | . 1 2 12 7 3 . . 1 3 . . 3 . 3 4 1 . 5 25 . Detach . | . . . . . . . . . . . . . . . . . . . . . Swap 174 | . 4 5 14 2 1 1 . 3 10 8 . 1 6 7 21 2 2 38 49 . Drop 170 | . 7 14 15 15 . 3 2 . 14 . . 13 6 1 36 17 . 2 25 . Fire 513 | 9 77 33 88 29 8 6 . 15 31 7 5 . 22 2 25 13 . 42 101 . Melee 9 | . . . . . . . . . 6 . . . . . 3 . . . . . Ram 7 | . . . . . . . . . . . . . . . . . . . 7 . Kick 12 | 2 6 4 . . . . . . . . . . . . . . . . . . Crush 21 | . . . 3 1 . . . . 1 . . . . . 6 . . 6 4 . Escape Stasis 4 | . . . . . . . . . . . . . . . 4 . . . . . Rewire 266 | . . . . . . . . . . . . . 5 . 258 . 3 . . . Trap . | . . . . . . . . . . . . . . . . . . . . . Miscellaneous . | . . . . . . . . . . . . . . . . . . . . . Route ------- -11/Junkyard -10/Materials (discovered 2 exits: *Mat x2) -9/Materials (discovered 3 exits: *Mat x2 / [*Min]) -8/Materials -7/Factory (discovered 3 exits: *Fac / *Low x2) -7/Lower Caves -7/Lower Caves -7/Data Miner -6/Proximity Caves -6/Factory (discovered 2 exits: *Low x2) -6/Lower Caves -6/Lower Caves -6/Zion (discovered 2 exits: Dee / [*Pro]) -5/Proximity Caves -5/Factory -5/Extension (discovered 2 exits: *Fac / *Cet) -5/Cetus (discovered 3 exits: *Fac x2 / *Arc) -5/Archives -5/Hub_04(d) (discovered 3 exits: *Fac x3) -4/Factory (discovered 3 exits: *Res x2 / [*Upp]) -4/Upper Caves History --------- Turn | Location | Event 13 | -11/Junkyard | Discovered new exit (range 13) 184 | -11/Junkyard | Entered Materials 212 | -10/Materials | Central database locked down 318 | -10/Materials | Build established: Mutant 512 | -10/Materials | Discovered new exit (range 16) 818 | -10/Materials | Discovered new exit (range 15) 854 | -10/Materials | Entered another Materials area 854 | -9/Materials | Evolved 2 slots: Propulsion x2 1173 | -9/Materials | Discovered new exit (range 15) 1448 | -9/Materials | Discovered new exit (range 6) 1748 | -9/Materials | Discovered new exit (range 16) 1787 | -9/Materials | Entered another Materials area 1787 | -8/Materials | Evolved 2 slots: Utility x2 2838 | -8/Materials | Garrison activated, responded to threat 2987 | -8/Materials | First assault squad dispatched 3003 | -8/Materials | Discovered new exit (range 9) 3077 | -8/Materials | Lost 4 parts (1p2u1w) 3161 | -8/Materials | Entered Factory 3161 | -7/Factory | Evolved 2 slots: Utility x2 3337 | -7/Factory | Discovered new exit (range 15) 3409 | -7/Factory | Build established: Scavenger-Mutant 3539 | -7/Factory | Lost 4 parts (3n1u) 3718 | -7/Factory | Identified exit to Lower Caves 3811 | -7/Factory | Build established: Mutant 4268 | -7/Factory | Entered Lower Caves 4270 | -7/Lower Caves | Attracted the attention of an 0b10 checkpoint 4307 | -7/Lower Caves | Lost 3 parts (2n1u) 4315 | -7/Lower Caves | Learned Factory stockpile data 4591 | -7/Lower Caves | Build established: Infiltrator-Mutant 4687 | -7/Lower Caves | Learned Research trap positions 4687 | -7/Lower Caves | Learned Armory emergency access door positions 4687 | -7/Lower Caves | Learned Research security intel 4735 | -7/Lower Caves | Discovered new exit (range 6) 4743 | -7/Lower Caves | Entered another Lower Caves area 4847 | -7/Lower Caves | Encountered a Warlord checkpoint 5000 | -7/Lower Caves | Discovered new exit (range 15) 5019 | -7/Lower Caves | Entered Data Miner 5019 | -7/Data Miner | Discovered new exit (range 6) 5051 | -7/Data Miner | Met Data Miner 5086 | -7/Data Miner | Learned location of Section 7 (-2) 5086 | -7/Data Miner | Acquired the access code to Warlord's prototype stash 5112 | -7/Data Miner | Received God Mode back door access code from Data Miner 5161 | -7/Data Miner | Entered Proximity Caves 5207 | -6/Proximity Caves | Escorted by Enhanced Grunt 5207 | -6/Proximity Caves | Attracted the attention of an 0b10 checkpoint 5489 | -6/Proximity Caves | Build established: Mutant 5877 | -6/Proximity Caves | Discovered new exit (range 10) 5894 | -6/Proximity Caves | Learned Factory terminal intel 5940 | -6/Proximity Caves | Entered Factory 5940 | -6/Factory | Accompanied by 1 ally 5940 | -6/Factory | Evolved 2 slots: Weapon x2 5942 | -6/Factory | Loaded intel: 26 terminal locations 6075 | -6/Factory | Identified exit to Lower Caves 6228 | -6/Factory | Build established: Pyromaniac-Skirmisher 7050 | -6/Factory | Entered Lower Caves 7414 | -6/Lower Caves | Build established: Gunner 7496 | -6/Lower Caves | System corruption reached 10% 7660 | -6/Lower Caves | Discovered new exit (range 12) 7686 | -6/Lower Caves | Entered another Lower Caves area 7769 | -6/Lower Caves | Encountered a Warlord checkpoint 7801 | -6/Lower Caves | Build established: Scavenger-Mutant 7976 | -6/Lower Caves | Attracted the attention of an 0b10 checkpoint 8072 | -6/Lower Caves | Discovered new exit (range 10) 8134 | -6/Lower Caves | Entered Zion 8215 | -6/Zion | System corruption cleaned by Quarantine Array 8268 | -6/Zion | Acquired unknown access codes intercepted by a Zionite 8404 | -6/Zion | Given the Hacking Drone Bay 8410 | -6/Zion | Found Prototype Device 8432 | -6/Zion | Given A8's code to call for help 8432 | -6/Zion | Discovered new exit (range 8) 8601 | -6/Zion | Build established: Scavenger-Gunner 8652 | -6/Zion | Identified exit to Deep Caves 9986 | -6/Zion | Imprinted 9988 | -6/Zion | Declared Zion's savior 10429 | -6/Zion | Entered Proximity Caves 10429 | -5/Proximity Caves | Accompanied by 4 allies 10431 | -5/Proximity Caves | Attracted the attention of an 0b10 outpost 10928 | -5/Proximity Caves | Learned 12 Factory zone layouts 11014 | -5/Proximity Caves | Build established: Scavenger-Mutant 11437 | -5/Proximity Caves | Discovered new exit (range 10) 11461 | -5/Proximity Caves | Entered Factory 11461 | -5/Factory | Evolved 2 slots: Utility x2 11676 | -5/Factory | Zion Infowar Resupply teleported in 11830 | -5/Factory | Discovered new exit (range 15) 11857 | -5/Factory | Build established: Scavenger-Skirmisher 11927 | -5/Factory | Repaired Antimatter Reactor 11976 | -5/Factory | Identified exit to Extension 11978 | -5/Factory | Entered Extension 12114 | -5/Extension | Rescued a captive Derelict 12268 | -5/Extension | Build established: Scavenger-Tank 12320 | -5/Extension | Zion Fire squad teleported in 12369 | -5/Extension | Zion Infowar Resupply teleported in 12514 | -5/Extension | Rescued a captive Derelict 12514 | -5/Extension | Rescued a captive Derelict 12676 | -5/Extension | Rescued a captive Derelict 12677 | -5/Extension | Rescued a captive Derelict 13070 | -5/Extension | Build established: Commander-Tank 13391 | -5/Extension | Spotted B-75 Beast 13396 | -5/Extension | Spotted B-75 Beast 13401 | -5/Extension | Allies destroyed B-75 Beast 13414 | -5/Extension | Allies destroyed B-75 Beast 13455 | -5/Extension | Terminal network hard line cut 13751 | -5/Extension | Build established: Scavenger-Tank 13774 | -5/Extension | Rescued a captive Derelict 13781 | -5/Extension | Rescued a captive Derelict 13951 | -5/Extension | Rescued A7 14412 | -5/Extension | Build established: Commander-Tank 14476 | -5/Extension | Rescued a captive Derelict 14624 | -5/Extension | Discovered new exit (range 10) 14627 | -5/Extension | Discovered new exit (range 6) 14658 | -5/Extension | Identified exit to Factory 14670 | -5/Extension | Identified exit to Cetus 14739 | -5/Extension | Entered Cetus 14739 | -5/Cetus | Accompanied by 16 allies (A7) 14744 | -5/Cetus | Acquired a Cetus Manufacturing Module code from A7 14769 | -5/Cetus | Spotted Cetus Guard 14769 | -5/Cetus | Spotted Cetus Guard 14771 | -5/Cetus | Spotted Cetus Guard 14777 | -5/Cetus | Spotted Cetus Guard 14783 | -5/Cetus | Allies destroyed Cetus Guard 14786 | -5/Cetus | Allies destroyed Cetus Guard 14795 | -5/Cetus | Allies destroyed Cetus Guard 14803 | -5/Cetus | Allies destroyed Cetus Guard 14852 | -5/Cetus | Discovered exit to Factory (range 15) 14966 | -5/Cetus | System corruption reached 10% 15055 | -5/Cetus | Started Cetus Manufacturing Module 15074 | -5/Cetus | Discovered new exit (range 16) 15075 | -5/Cetus | Build established: Scavenger-Tank 15080 | -5/Cetus | Manufactured an Enhanced Grunt 15102 | -5/Cetus | Spotted Cetus Guard 15102 | -5/Cetus | Spotted Cetus Guard 15105 | -5/Cetus | Manufactured an Enhanced Grunt 15106 | -5/Cetus | Spotted Cetus Guard 15108 | -5/Cetus | Spotted Cetus Guard 15110 | -5/Cetus | Destroyed Cetus Guard 15115 | -5/Cetus | Allies destroyed Cetus Guard 15123 | -5/Cetus | Allies destroyed Cetus Guard 15130 | -5/Cetus | Manufactured an Enhanced Grunt 15130 | -5/Cetus | Allies destroyed Cetus Guard 15145 | -5/Cetus | Discovered exit to Factory (range 16) 15155 | -5/Cetus | Manufactured an Enhanced Grunt 15180 | -5/Cetus | Manufactured an Enhanced Grunt 15222 | -5/Cetus | Escorted A7 to Cetus Mainframe 15290 | -5/Cetus | System corruption reached 30% 15297 | -5/Cetus | Scared off Revision 17 15376 | -5/Cetus | Identified exit to Archives 15381 | -5/Cetus | Entered Archives 15381 | -5/Archives | Accompanied by 6 allies (A7) 15386 | -5/Archives | Received a hacking code to weaken MAIN.C 15399 | -5/Archives | Met Zhirov 15405 | -5/Archives | Reinforcements dispatched to Archives 15417 | -5/Archives | Identified Hacking Drone Bay 15432 | -5/Archives | Unable to access archive contents 15441 | -5/Archives | Discovered new exit (range 16) 15450 | -5/Archives | Reinforcements dispatched to Archives 15450 | -5/Archives | Read partially decrypted archive contents 15452 | -5/Archives | Zhirov warped through subspace 15470 | -5/Archives | Zhirov detonated Archives 15480 | -5/Archives | Identified exit to Hub_04(d) 15481 | -5/Archives | Entered Hub_04(d) 15821 | -5/Hub_04(d) | Discovered exit to Factory (range 9) 15825 | -5/Hub_04(d) | Build established: Scavenger-Skirmisher 15918 | -5/Hub_04(d) | Discovered exit to Factory (range 20) 15981 | -5/Hub_04(d) | Zion Hacker squad teleported in 16047 | -5/Hub_04(d) | Zion Hacker squad teleported in 16085 | -5/Hub_04(d) | Zion Infowar Resupply teleported in 16188 | -5/Hub_04(d) | Discovered exit to Factory (range 10) 16317 | -5/Hub_04(d) | Garrison activated, responded to threat 16381 | -5/Hub_04(d) | First assault squad dispatched 16460 | -5/Hub_04(d) | Spotted B-75 Beast 16479 | -5/Hub_04(d) | Destroyed B-75 Beast 16602 | -5/Hub_04(d) | Network Hub disabled 16615 | -5/Hub_04(d) | Spotted Lightning 16616 | -5/Hub_04(d) | Spotted Lightning 16627 | -5/Hub_04(d) | Spotted Lightning 16639 | -5/Hub_04(d) | Core integrity fell below 50% 16675 | -5/Hub_04(d) | Entered Factory 16675 | -4/Factory | Evolved 2 slots: Power x1, Utility x1 16694 | -4/Factory | Lost 9 parts (1p4u4w) 17096 | -4/Factory | Incoming investigation squad redirected 17128 | -4/Factory | Fabricated Adv. Medium Treads? 17171 | -4/Factory | Build established: Scavenger-Tank 17201 | -4/Factory | First assault squad dispatched 17231 | -4/Factory | Incoming assault squad redirected 17790 | -4/Factory | Repaired Hrd. Medium Armor Plating 17849 | -4/Factory | Spotted B-86 Titan 17900 | -4/Factory | Terminal network hard line cut 17970 | -4/Factory | Incoming assault squad redirected 17976 | -4/Factory | Incoming assault squad redirected 18182 | -4/Factory | Discovered new exit (range 17) 18194 | -4/Factory | Incoming assault squad redirected 18198 | -4/Factory | Incoming assault squad redirected 18213 | -4/Factory | Identified exit to Research 18290 | -4/Factory | Build established: Scavenger-Skirmisher 18365 | -4/Factory | Cargo convoy interrupted 18388 | -4/Factory | Incoming assault squad redirected 18831 | -4/Factory | Discovered exit to Research (range 4) 18834 | -4/Factory | Lost 3 parts (1p1u1w) 19345 | -4/Factory | Lost 10 parts (1p4n3u2w) 19446 | -4/Factory | Incoming assault squad redirected 19520 | -4/Factory | Incoming assault squad redirected 19522 | -4/Factory | Released all parts (13) 19552 | -4/Factory | Lost 6 parts (1p1n2u2w) 19574 | -4/Factory | Core integrity fell below 50% 19598 | -4/Factory | Incoming assault squad redirected 19615 | -4/Factory | Incoming assault squad redirected 19620 | -4/Factory | Core integrity fell below 20% 19633 | -4/Factory | Discovered new exit (range 10) 19638 | -4/Factory | Entered Upper Caves 19671 | -4/Upper Caves | Encountered a Warlord checkpoint 19678 | -4/Upper Caves | Attracted the attention of an 0b10 checkpoint 19719 | -4/Upper Caves | Destroyed by G-67 Veteran with Plasma Rifle Last Messages --------------- 19639_ YR-ORO(k) breaks down the debris. 19639_ N8-4XJ(k) breaks down the debris. 19640_ IQ-TXE(k) breaks down the debris. 19653_ M-30 Cleanser extracted Dirty Bomb Trap. 19655_ M-30 Cleanser reprogrammed Fire Trap. 19671_ PB-EM4(M): "This area isn't safe." 19678_ Y-64 Sentinel: "INTERCEPTING UNREGISTERED DERELICT." 19688_ System corrupted: Matter fused (-5). 19702_ System corruption misinterpreted. 19702_ Triggered Fire Trap. 19702_ Burning plasma bursts from the floor. 19704_ G-67 Veteran heat damages core (-22). 19708_ Searching scrap... 19708_ Found Antigrav System. 19708_ Found Lrg. Storage Unit. 19708_ Found Lrn. Proton Cannon. 19708_ Found Hvy. Machine Gun. 19708_ Found 32 Matter. 19709_ Acquired 32 matter. [Achievement: Collector] Map ----- +----------------------------------------------------+ | ????????????????????###### #?????## #????? | | ???????????????????## ## #????## #???## | | ??????????????????## #????# #???# | | ??????????????????# % ## #???## ##???# | | ??????????????????# ! ##???# ####?# | | ??????????????????## ##????# ## #?# | | ???????????????????###### ####??# ### | | ????????????????????????### ##?# | | ??????????????????????????# #?## | | ?????????????????????????## ##?# ### | | ?????????????????????????# ### # #?? | | ????????????????????"" ??## ## #?? | | ????????????????????"" "??### g #### ?? | | ????????????????????#"$"????# g### #####???## ? | | ???????????????????##" "#???# [#?# ##?????????## | | ??????????????????##"" ""####!=#?# ?#????????????# | | ?????????????????## ??# #?#???????????????? | | ????????????????## #??## ##????????????????? | | ???????????????## #???# ##???????????????? | | ???????????????# #??## #???????????????? | | ???????????????# #### #???????????????? | | ???????????????# ## ### ##???????????????? | | ???????????????# ##??##????????????????? | | ???????????????# ## #?????????????????????? | | ???????????????##?## ### ## ## ????????? | | ???????????????????####?#@ ????????? | | ????????????????????????# # ????????? | | ???????????????????????? #?????????? | | ???????????????????????? ## ?????????? | | ??????????????????????? #??????????????? | | ??????????????????????? #??????????????? | | ?????????????????????? #??????????????? | | ?????????????????????? ## ##??????????????? | | ????????????????????? #?## ##???????????????? | | ????????????????????? ???? #????????????????? | | ???????????????????? ???? #????????????????? | | ???????????????????? ????? ????????????????? | | ??????????????????? ????? #???????????????? | | ??????????????????? ?????? ????????????????? | | ?????????????????????????? ???????????????????? | | ?????????????????????????? ?????????????????????? | | ?????????????????????????????????????????????????? | | ?????????????????????????????????????????????????? | | ?????????????????????????????????????????????????? | | ?????????????????????????????????????????????????? | | ?????????????????????????????????????????????????? | | ?????????????????????????????????????????????????? | | ?????????????????????????????????????????????????? | | ?????????????????????????????????????????????????? | | ?????????????????????????????????????????????????? | +----------------------------------------------------+ Best States ------------- Heat Dissipation 78 Energy Generation 39 Energy Capacity 565 Matter Stores 300 Matter Capacity 300 Sight Range 16 Robot Scan Range 18 Terrain Scan Range 20 Terrain Scan Density 210 Jamming Range 14 Armor Coverage 1350 Resistance: KI 30 Resistance: TH 25 Resistance: EM 25 Core Shielding 20 Utility Shielding 66 Phase Shifting 10 Evasion (%) 55 Targeting Accuracy 6 Melee Accuracy 5 Recoil Reduction 4 Particle Charging 15 Offensive Hacking 22 Item Schematics ----------------- Huge Storage Unit | -10/Materials | Hacked Combat Drone Bay | -7/Data Miner | Free Lgt. Regenerative Plating | -7/Data Miner | Free Biomechanical Wings | -7/Data Miner | Free Thermal Defense Suite | -7/Data Miner | Free Imp. Heavy Laser | -7/Data Miner | Free Linear Gravjet | -7/Data Miner | Free Imp. Focal Shield | -7/Data Miner | Free Mass Driver | -7/Data Miner | Free Adv. Medium Treads | -7/Data Miner | Free Proton Cannon | -7/Data Miner | Free Robot Schematics ------------------ G-50 Soldier | -7/Data Miner | Free L-41 Fighter | -7/Data Miner | Free O-24 Administrator | -7/Data Miner | Free Fabricated ------------ Adv. Medium Treads | x2 | -4/Factory Alien Tech Used ----------------- None Achievements -------------- Collector Challenges ------------ None Game ------ Seed AlertAuthchipFirepult Manual? 0 Play Time 02:08:41 Cumulative 181.1 hours Start 2023.07.25 @ 19:05:12 End 2023.07.25 @ 21:55:54 Sessions 5 Manual Loads 0 Difficulty Rogue Special Mode None Game No. 227 Rogue 227 Adventurer 0 Explorer 0 Win Type - Total 3 Types 2/0/0/1/0/0/0/0/0 Lore% 67 Gallery% 75 Achievement% 58 Wizard Run 0 Options --------- ASCII 0 Keyboard 0 Movement Numpad Keybinds 0 Fullscreen 1 Font 18/SmallcapsGlow Map View 76x50 Tactical HUD 1 Map Filters NONE Filters NONE Steam 1 RUN: 951201b5-cffe-464f-83e3-7e132c7804bb